bitfinex-derivatives/quotes_SOLF0:USTF0_20220101
["timestamp","ask_amount","ask_price","bid_price","bid_amount"]
[1641057064452,29.4557,173.56,173.47,1.22927794]
[1641057064852,27.66479,173.55,173.47,1.22927794]
[1641057065254,27.66479,173.55,173.46,32.63279]
[1641057069057,29.4557,173.56,173.46,32.63279]
[1641057070056,15.00514742,173.55,173.47,19.41832544]
[1641057072559,2.85380821,173.55,173.48,12.15133921]
[1641057073061,2.85380821,173.55,173.5,27.66479]
[1641057074361,2.85380821,173.55,173.51,1.23794941]
[1641057076060,2.85380821,173.55,173.51,4.23794941]
[1641057076261,2.85380821,173.55,173.51,1.23794941]
[1641057076562,2.85380821,173.55,173.51,4.23794941]
[1641057076760,2.85380821,173.55,173.52,3.0]
[1641057077162,12.15133921,173.57,173.52,3.0]
[1641057077163,2.85380821,173.59,173.53,12.15133921]
[1641057079063,27.66479,173.57,173.53,12.15133921]
[1641057079263,33.73479,173.57,173.53,12.15133921]
[1641057079463,45.88612921,173.57,173.53,1.23794941]
[1641057079663,18.22133921,173.57,173.53,1.23794941]
[1641057079964,2.85380821,173.56,173.53,1.23794941]
[1641057080966,12.15133921,173.58,173.53,1.23794941]
[1641057081167,27.66479,173.57,173.53,1.23794941]
[1641057081866,2.85380821,173.56,173.51,1.23794941]
[1641057083266,12.15133921,173.57,173.5,29.8473]
[1641057084168,12.15133921,173.57,173.51,1.23800974]
[1641057084969,12.15133921,173.57,173.51,3.0]
[1641057085171,12.15133921,173.57,173.5,60.51209]
[1641057085369,12.15133921,173.57,173.5,57.51209]
[1641057085571,2.85314892,173.58,173.52,13.38940496]
[1641057086575,27.66479,173.59,173.52,12.15133921]
[1641057087274,2.85249751,173.58,173.52,12.15133921]
[1641057087873,27.66479,173.59,173.52,12.15133921]
[1641057088675,2.85243312,173.58,173.52,12.15133921]
[1641057089073,27.66479,173.59,173.52,12.15133921]
[1641057089675,64.28922258,173.64,173.52,12.15133921]
[1641057090075,2.85241137,173.58,173.52,12.15133921]
[1641057090577,12.27146329,173.6,173.52,12.15133921]
[1641057091180,13.18567309,173.63,173.52,12.15133921]
[1641057091781,12.27111089,173.6,173.52,12.15133921]
[1641057092380,12.27259676,173.58,173.51,1.23806575]
[1641057093282,27.66479,173.59,173.51,1.23806575]
[1641057093683,27.66479,173.59,173.5,69.66342921]
[1641057093684,15.12543105,173.58,173.5,69.66342921]
[1641057094384,12.27305723,173.57,173.51,1.23802175]
[1641057095486,13.18776297,173.58,173.5,57.51209]
[1641057095985,12.27361607,173.57,173.51,1.23800463]
[1641057096786,12.27361607,173.57,173.5,57.51209]
[1641057097585,15.12598989,173.58,173.51,1.23799827]
[1641057098085,15.12598989,173.58,173.5,69.66342921]
[1641057098686,27.66479,173.59,173.5,69.66342921]
[1641057098887,27.66479,173.59,173.51,1.23799709]
[1641057099485,27.66479,173.59,173.5,69.66342921]
[1641057099486,15.12714156,173.58,173.5,69.66342921]
[1641057100187,15.12714156,173.58,173.51,1.23799907]
[1641057100787,27.66479,173.59,173.51,1.23799907]
[1641057101088,31.8116,173.6,173.51,1.23799907]
[1641057101688,15.1274338,173.58,173.51,1.23799907]
[1641057102588,12.27406754,173.58,173.5,41.99863921]
[1641057102989,15.1274338,173.59,173.51,19.41814598]
[1641057103189,27.66479,173.58,173.51,19.41814598]
[1641057103789,2.85336626,173.57,173.51,1.23800922]
[1641057104291,39.93885754,173.58,173.5,41.99863921]
[1641057104690,12.27406754,173.58,173.5,41.99863921]
[1641057104891,31.8116,173.6,173.5,41.99863921]
[1641057105090,15.12720054,173.57,173.51,1.23799527]
[1641057105591,15.12720054,173.57,173.5,29.8473]
[1641057106193,27.66479,173.58,173.5,29.8473]
[1641057106392,27.66479,173.58,173.51,1.23800486]
[1641057107292,15.1267094,173.57,173.5,29.8473]
[1641057107893,27.66479,173.58,173.51,1.23800674]
[1641057108493,27.66479,173.58,173.5,29.8473]
[1641057108694,2.84542086,173.57,173.5,29.8473]
[1641057109496,27.66479,173.58,173.51,1.23462915]
[1641057109696,12.24014575,173.59,173.51,1.23462915]
[1641057110197,15.08555563,173.59,173.5,29.8473]
[1641057110796,15.08555563,173.59,173.51,1.23462849]
[1641057110996,27.66479,173.58,173.51,1.23462849]
[1641057111200,3.0,173.57,173.51,1.23462849]
[1641057111399,3.0,173.56,173.48,12.15133921]
[1641057111598,31.0127,173.56,173.48,12.15133921]
[1641057112299,2.84603859,173.55,173.47,1.23457156]
[1641057113098,27.66479,173.54,173.47,1.23457156]
[1641057113500,3.0,173.53,173.47,1.23457156]
[1641057113699,27.66479,173.54,173.47,1.23457156]
[1641057114099,30.66479,173.54,173.47,1.23457156]
[1641057114299,2.84660052,173.53,173.47,1.23457156]
[1641057115001,2.84660052,173.53,173.44,12.15133921]
[1641057115002,27.66479,173.54,173.44,12.15133921]
[1641057115201,27.66479,173.51,173.44,19.39868963]
[1641057115800,21.85681592,173.51,173.44,1.23451114]
[1641057116302,21.85681592,173.51,173.45,1.23451114]
[1641057117002,21.85681592,173.51,173.44,1.23451114]
[1641057117604,21.85681592,173.51,173.44,19.3977193]
[1641057117903,3.0,173.54,173.44,19.3977193]
[1641057118205,4.08119672,173.51,173.47,4.08119672]
[1641057119608,4.08119672,173.5,173.49,4.08119672]
[1641057120210,4.08119672,173.5,173.46,12.15133921]
[1641057120408,4.08119672,173.52,173.46,12.15133921]
[1641057120612,4.08119672,173.52,173.48,12.15133921]
[1641057122112,15.08682947,173.55,173.51,4.09185129]
[1641057122711,12.24014575,173.54,173.5,4.09185129]
[1641057123514,2.84668372,173.55,173.47,42.24323921]
[1641057123515,2.84668372,173.55,173.52,4.09185129]
[1641057125417,2.84668372,173.55,173.48,19.3977193]
[1641057125418,15.08682947,173.55,173.51,4.09185129]
[1641057127922,15.08682947,173.55,173.52,4.09185129]
[1641057128122,2.84668372,173.55,173.52,4.09185129]
[1641057129224,2.84668372,173.55,173.51,4.09185129]
[1641057130027,27.66479,173.56,173.52,4.09185129]
[1641057133432,27.66479,173.56,173.53,4.09185129]
[1641057137434,4.08462254,173.55,173.53,4.09185129]
[1641057137835,4.08462254,173.55,173.52,4.09185129]
[1641057138536,4.08462254,173.54,173.51,4.09185129]
[1641057140238,4.08462254,173.53,173.51,4.09185129]
[1641057143043,4.08462254,173.52,173.5,4.09185129]
[1641057147044,10.26262254,173.52,173.5,4.09185129]
[1641057147645,10.26262254,173.52,173.49,4.09185129]
[1641057150249,10.26262254,173.52,173.5,4.09185129]
[1641057151750,4.08462254,173.51,173.49,4.09185129]
[1641057152251,4.08462254,173.5,173.48,5.32636243]
[1641057153055,4.08462254,173.51,173.48,4.09185129]
[1641057155154,2.8493198,173.53,173.48,4.09185129]
[1641057155155,4.08462254,173.52,173.48,4.09185129]
[1641057156357,4.08462254,173.51,173.48,4.09185129]
[1641057157456,4.08462254,173.52,173.48,4.09185129]
[1641057158159,4.08462254,173.53,173.5,4.09185129]
[1641057159364,31.74941254,173.53,173.5,4.09185129]
[1641057159564,27.66479,173.53,173.49,4.09185129]
[1641057160067,34.78292254,173.54,173.49,4.09185129]
[1641057161370,27.66479,173.53,173.49,4.09185129]
[1641057164276,34.78292254,173.54,173.49,4.09185129]
[1641057165177,34.78292254,173.54,173.47,4.09185129]
[1641057165178,4.08462254,173.52,173.47,4.09185129]
[1641057165379,3.0,173.51,173.47,4.09185129]
[1641057165578,27.66479,173.51,173.47,4.09185129]
[1641057166178,31.74941254,173.51,173.46,4.09185129]
[1641057166880,2.85493258,173.5,173.48,4.09185129]
[1641057167677,12.24014575,173.52,173.48,4.09185129]
[1641057168779,12.24014575,173.52,173.45,30.2053]
[1641057168780,15.09507833,173.53,173.49,4.09185129]
[1641057169980,12.24014575,173.52,173.49,4.09185129]
[1641057170780,15.09507833,173.53,173.49,4.09185129]
[1641057171380,15.09507833,173.53,173.48,4.09185129]
[1641057171381,12.24014575,173.52,173.48,4.09185129]
[1641057171687,27.66479,173.5,173.48,4.09185129]
[1641057171880,12.24014575,173.52,173.48,4.09185129]
[1641057172281,2.85493258,173.49,173.48,4.09185129]
[1641057172882,15.09507833,173.53,173.46,12.15133921]
[1641057173481,27.66479,173.51,173.46,12.15133921]
[1641057173682,27.66479,173.51,173.48,4.08598106]
[1641057174483,27.66479,173.51,173.49,4.08598106]
[1641057174985,30.6983,173.54,173.49,4.08598106]
[1641057175386,33.6983,173.54,173.49,4.08598106]
[1641057175585,27.66479,173.51,173.49,4.08598106]
[1641057175987,30.51523862,173.53,173.48,4.08598106]
[1641057176688,2.85023879,173.52,173.49,4.08582186]
[1641057176887,5.85023879,173.52,173.49,4.08582186]
[1641057177090,2.85023879,173.52,173.49,4.08582186]
[1641057177289,27.66479,173.53,173.48,4.08599474]
[1641057177688,3.0,173.52,173.48,4.08599474]
[1641057177997,2.85044965,173.52,173.44,19.41420092]
[1641057179090,27.66479,173.53,173.48,4.08602721]
[1641057179691,27.66479,173.53,173.44,19.41420092]
[1641057179692,2.85023265,173.52,173.49,4.08581629]
[1641057180893,27.66479,173.53,173.45,12.15133921]
[1641057181092,27.66479,173.53,173.48,4.0858492]
[1641057181493,2.85026616,173.52,173.44,19.41420092]
[1641057182197,4.08584569,173.5,173.48,4.08584569]
[1641057183197,42.93844575,173.54,173.44,19.41420092]
[1641057183399,2.85016725,173.53,173.44,19.41420092]
[1641057184097,12.24014575,173.53,173.49,4.09216085]
[1641057184697,58.36309,173.54,173.45,12.15133921]
[1641057184899,2.85477619,173.53,173.45,12.15133921]
[1641057185605,12.27732335,173.52,173.48,4.09244112]
[1641057186503,12.27732335,173.52,173.44,19.41420092]
[1641057187103,13.19619843,173.53,173.48,4.0923922]
[1641057187706,2.85477619,173.53,173.5,4.09240263]
[1641057188506,42.97550789,173.54,173.47,30.5342]
[1641057188706,30.6983,173.54,173.51,4.0921615]
[1641057188908,12.27720789,173.55,173.51,4.0921615]
[1641057189308,12.27720789,173.54,173.5,4.0922228]
[1641057190209,43.93971919,173.56,173.51,4.09217784]
[1641057190410,12.27653353,173.55,173.51,4.09217784]
[1641057190811,15.13121644,173.55,173.47,42.68553921]
[1641057191511,30.7444,173.56,173.51,4.09205042]
[1641057192111,15.130591,173.55,173.48,1.23755713]
[1641057192319,15.130591,173.55,173.51,27.66479]
[1641057192921,32.69342258,173.59,173.52,3.0]
[1641057193121,15.12898489,173.57,173.55,3.0]
[1641057193320,10.33855847,173.6,173.55,3.0]
[1641057193921,5.75771534,173.67,173.58,4.09060848]
[1641057193922,10.33855847,173.63,173.58,4.09060848]
[1641057194522,10.33855847,173.63,173.56,27.66479]
[1641057194724,33.42250534,173.67,173.56,30.66479]
[1641057195221,3.0,173.66,173.56,27.66479]
[1641057195621,33.42250534,173.67,173.56,21.12060352]
[1641057195921,36.42250534,173.67,173.56,21.12060352]
[1641057196121,33.42250534,173.67,173.56,21.12060352]
[1641057196322,33.42250534,173.67,173.57,29.5944]
[1641057198222,36.42250534,173.67,173.57,29.5944]
[1641057198424,33.42250534,173.67,173.57,29.5944]
[1641057198622,36.42250534,173.67,173.57,29.5944]
[1641057198823,3.0,173.66,173.57,29.5944]
[1641057199422,3.0,173.65,173.57,29.5944]
[1641057199622,7.04866663,173.63,173.57,29.5944]
[1641057199822,7.04866663,173.63,173.51,33.42117959]
[1641057200023,35.4402,173.62,173.52,29.7665]
[1641057200424,27.66479,173.59,173.52,29.7665]
[1641057202425,55.32958,173.59,173.52,29.7665]
[1641057203326,10.33334067,173.58,173.53,4.0482038]
[1641057204427,27.66479,173.56,173.53,4.0482038]
[1641057206533,30.66479,173.56,173.53,4.0482038]
[1641057207032,27.66479,173.56,173.51,4.0482038]
[1641057207232,59.65269,173.56,173.51,4.0482038]
[1641057208538,27.66479,173.53,173.51,4.0482038]
[1641057210739,27.66479,173.53,173.47,11.78936097]
[1641057212942,27.66479,173.53,173.48,4.0636072]
[1641057216549,31.9879,173.56,173.48,4.0636072]
[1641057217050,27.66479,173.53,173.48,4.0636072]
[1641057217850,27.66479,173.53,173.47,5.75771534]
[1641057217851,27.66479,173.53,173.47,9.82132254]
[1641057221955,27.66479,173.53,173.48,4.0636072]
[1641057222558,27.66479,173.53,173.47,9.82132254]
[1641057223357,27.66479,173.53,173.47,4.0636072]
[1641057224461,4.0636162,173.52,173.48,12.19066227]
[1641057225063,31.7284062,173.53,173.48,12.19066227]
[1641057225864,31.7284062,173.53,173.49,12.19066227]
[1641057226168,4.0636162,173.53,173.49,12.19066227]
[1641057227472,3.0,173.52,173.49,12.19066227]
[1641057227672,27.66479,173.5,173.49,12.19066227]
[1641057227872,27.66479,173.5,173.47,6.03164902]
[1641057227873,27.66479,173.5,173.47,18.22231129]
[1641057228673,4.0636162,173.49,173.45,12.19066227]
[1641057231680,31.7284062,173.5,173.46,12.19066227]
[1641057232481,27.66479,173.5,173.43,18.22231129]
[1641057233182,27.66479,173.5,173.43,12.19066227]
[1641057233382,27.66479,173.5,173.42,29.9405]
[1641057233983,31.7284062,173.5,173.43,1.23384216]
[1641057238686,4.0636162,173.5,173.43,1.23384216]
[1641057239086,4.0636162,173.49,173.43,1.23384216]
[1641057240293,4.0636162,173.49,173.43,5.31016753]
[1641057240790,57.46739,173.51,173.43,5.31016753]
[1641057240791,57.46739,173.51,173.46,4.07632537]
[1641057241991,29.8026,173.51,173.46,4.07632537]
[1641057242192,4.0636162,173.52,173.46,4.07632537]
[1641057243193,32.3875,173.53,173.51,4.07632537]
[1641057243395,2.85327594,173.53,173.51,4.07632537]
[1641057245995,30.51806594,173.54,173.51,4.07632537]
[1641057246397,2.85327594,173.54,173.51,4.07632537]
[1641057246596,2.85327594,173.53,173.51,4.07632537]
[1641057247800,2.85327594,173.54,173.52,27.66479]
[1641057248298,2.85327594,173.54,173.51,4.07632537]
[1641057249000,2.85327594,173.55,173.53,5.31016753]
[1641057249602,15.04393821,173.57,173.53,4.07632537]
[1641057249802,42.70872821,173.57,173.53,4.07632537]
[1641057251105,15.04393821,173.57,173.53,4.07632537]
[1641057251305,2.85327594,173.56,173.53,4.07632537]
[1641057252007,15.04393821,173.57,173.53,4.07632537]
[1641057252807,15.04393821,173.6,173.56,4.07632537]
[1641057254210,12.19066227,173.59,173.55,4.07632537]
[1641057254908,12.19066227,173.58,173.54,4.07632537]
[1641057255809,2.85327594,173.6,173.57,4.07632537]
[1641057256610,57.67789,173.61,173.54,32.1007]
[1641057257413,27.66479,173.61,173.54,32.1007]
[1641057257614,27.66479,173.61,173.54,37.8237]
[1641057257813,27.66479,173.61,173.54,31.27863354]
[1641057259513,31.72426273,173.61,173.54,31.27863354]
[1641057261321,27.66479,173.61,173.54,31.27863354]
[1641057262023,15.03038911,173.6,173.56,4.05971616]
[1641057264723,12.17914849,173.59,173.56,4.05971616]
[1641057265525,12.17914849,173.6,173.56,4.05971616]
[1641057266126,12.17914849,173.59,173.55,5.29917229]
[1641057268131,12.17914849,173.58,173.55,5.29917229]
[1641057269628,12.17914849,173.58,173.54,4.05971616]
[1641057270429,2.85124062,173.59,173.56,4.05971616]
[1641057270833,2.85124062,173.59,173.54,1.23943851]
[1641057271031,27.66479,173.57,173.54,1.23943851]
[1641057271329,27.66479,173.57,173.52,12.19066227]
[1641057272029,2.85124062,173.56,173.49,13.42977542]
[1641057276637,2.85124062,173.56,173.47,1.23911315]
[1641057277838,29.6752,173.55,173.47,1.23911315]
[1641057279340,2.85124062,173.54,173.47,1.23911315]
[1641057279942,2.85124062,173.55,173.47,1.23911315]
[1641057284046,2.85124062,173.55,173.48,5.75738384]
[1641057284948,27.66479,173.56,173.49,1.23911315]
[1641057286351,2.85233033,173.55,173.5,12.19066227]
[1641057287052,27.66479,173.56,173.51,12.19066227]
[1641057288456,30.8502,173.58,173.51,12.19066227]
[1641057289052,2.85216389,173.57,173.51,12.19066227]
[1641057292158,2.85216389,173.57,173.5,19.4424574]
[1641057293660,12.17914849,173.56,173.5,1.23911315]
[1641057294461,2.85216389,173.57,173.5,1.23911315]
[1641057294462,15.03131238,173.57,173.5,1.23911315]
[1641057297563,2.85216389,173.57,173.5,19.45890546]
[1641057298863,2.85216389,173.57,173.5,1.23911315]
[1641057299965,15.03131238,173.57,173.5,1.23911315]
[1641057304075,12.17914849,173.56,173.5,1.23911315]
[1641057308378,13.18168559,173.57,173.5,1.23911315]
[1641057308379,15.03131238,173.57,173.5,1.23911315]
[1641057310081,27.66479,173.56,173.5,1.23911315]
[1641057311082,2.85216389,173.55,173.5,1.23911315]
[1641057318591,27.66479,173.56,173.49,30.8738]
[1641057319191,2.85202193,173.55,173.5,1.23900368]
[1641057319893,27.66479,173.56,173.49,43.06446227]
[1641057320094,27.66479,173.56,173.49,30.8738]
[1641057320695,2.85205079,173.55,173.5,1.23900106]
[1641057321594,27.66479,173.56,173.5,3.0]
[1641057322495,2.85186065,173.55,173.51,1.23901834]
[1641057322898,2.85186065,173.55,173.51,4.23901834]
[1641057323094,30.8502,173.58,173.51,15.19066227]
[1641057323997,2.85213801,173.57,173.52,1.23914389]
[1641057324598,30.8502,173.58,173.51,15.19066227]
[1641057324996,27.66479,173.57,173.51,15.19066227]
[1641057325196,30.51692405,173.57,173.52,1.23914425]
[1641057325595,27.66479,173.57,173.51,15.19066227]
[1641057325796,2.85210418,173.56,173.51,15.19066227]
[1641057326396,27.66479,173.57,173.52,13.42982944]
[1641057327001,27.66479,173.57,173.52,1.23916717]
[1641057327200,21.11921671,173.57,173.52,1.23916717]
[1641057328100,21.11921671,173.57,173.53,3.0]
[1641057328301,21.11921671,173.57,173.52,5.75622392]
[1641057328600,21.11921671,173.57,173.53,3.0]
[1641057328803,30.1425,173.61,173.54,1.23916717]
[1641057329001,30.1425,173.61,173.54,28.90395717]
[1641057329802,30.1425,173.61,173.55,1.23916717]
[1641057330002,12.24053768,173.64,173.55,1.23916717]
[1641057330205,43.55033768,173.64,173.55,1.23916717]
[1641057330605,31.3098,173.64,173.55,1.23916717]
[1641057331207,4.07938105,173.6,173.56,4.07938105]
[1641057332306,4.07938105,173.6,173.56,7.07938105]
[1641057332506,4.07938105,173.6,173.56,4.07938105]
[1641057332708,4.07938105,173.61,173.57,4.07938105]
[1641057333106,4.07938105,173.61,173.59,27.66479]
[1641057334811,4.07938105,173.61,173.57,4.07938105]
[1641057335211,4.07938105,173.61,173.57,31.74417105]
[1641057335411,4.07938105,173.61,173.57,32.97977288]
[1641057336011,4.07938105,173.61,173.57,31.74417105]
[1641057338314,4.07938105,173.61,173.57,34.74417105]
[1641057338615,2.8438081,173.63,173.58,5.31498155]
[1641057338616,4.07938105,173.62,173.58,5.31498155]
[1641057339216,4.07938105,173.63,173.59,4.07938105]
[1641057340521,2.85105145,173.63,173.6,4.07938105]
[1641057341319,2.85105145,173.63,173.59,4.07938105]
[1641057341320,15.09158913,173.63,173.59,4.07938105]
[1641057343923,2.85105145,173.63,173.6,4.07938105]
[1641057344524,15.09158913,173.63,173.59,4.07938105]
[1641057345826,15.09158913,173.63,173.57,27.66479]
[1641057346026,2.85105145,173.63,173.57,27.66479]
[1641057347832,2.85105145,173.63,173.58,5.31455128]
[1641057349430,2.85105145,173.63,173.61,27.66479]
[1641057352032,2.85105145,173.63,173.58,39.28478105]
[1641057352432,2.85105145,173.63,173.58,36.28478105]
[1641057353535,31.3098,173.64,173.58,36.28478105]
[1641057353735,31.3098,173.64,173.61,27.66479]
[1641057354035,12.24053768,173.67,173.61,27.66479]
[1641057355436,12.24053768,173.67,173.59,4.07938105]
[1641057355938,4.07725319,173.64,173.61,27.66479]
[1641057357139,2.84206288,173.65,173.61,27.66479]
[1641057357338,15.08260056,173.65,173.61,31.74417105]
[1641057358142,2.84206288,173.65,173.62,5.31829202]
[1641057358641,43.90663768,173.66,173.62,1.23891097]
[1641057358841,31.6661,173.66,173.62,7.54091097]
[1641057359041,12.24053768,173.69,173.62,7.54091097]
[1641057359241,12.24053768,173.69,173.62,10.54091097]
[1641057359540,12.24053768,173.69,173.62,7.54091097]
[1641057359741,12.24053768,173.7,173.63,1.23891097]
[1641057359940,12.24053768,173.7,173.63,33.75961097]
[1641057360745,12.24053768,173.67,173.64,5.32758743]
[1641057361644,12.24053768,173.67,173.64,4.08867646]
[1641057361844,12.24053768,173.67,173.63,36.60937646]
[1641057362045,12.24053768,173.67,173.63,4.08867646]
[1641057362645,12.24053768,173.66,173.62,5.32763819]
[1641057365849,15.09021881,173.67,173.63,4.08867646]
[1641057367549,12.24053768,173.68,173.64,4.08867646]
[1641057368248,12.24053768,173.69,173.65,4.08867646]
[1641057368848,15.09021881,173.7,173.66,4.08867646]
[1641057371952,2.84968113,173.7,173.67,4.08867646]
[1641057373654,2.84968113,173.7,173.68,4.08867646]
[1641057375854,12.24053768,173.71,173.67,4.08867646]
[1641057376055,12.24053768,173.71,173.67,10.48667646]
[1641057379259,12.24053768,173.72,173.68,5.32776875]
[1641057379861,12.24053768,173.72,173.68,4.08867646]
[1641057381663,12.24053768,173.71,173.68,4.08867646]
[1641057382462,12.24053768,173.71,173.67,4.08867646]
[1641057383464,12.24053768,173.72,173.68,4.08867646]
[1641057384267,12.24053768,173.72,173.66,1.23909229]
[1641057384268,3.0,173.7,173.66,1.23909229]
[1641057384468,30.3318,173.71,173.64,12.19066227]
[1641057384670,60.99659,173.71,173.64,12.19066227]
[1641057385868,12.24053768,173.69,173.64,1.23876451]
[1641057387270,15.09021881,173.7,173.64,1.23876451]
[1641057387972,70.26027593,173.71,173.63,20.94307828]
[1641057388572,70.26027593,173.71,173.63,17.94307828]
[1641057388773,2.84890886,173.7,173.65,27.66479]
[1641057389674,30.3318,173.71,173.66,1.23883323]
[1641057390276,30.3318,173.71,173.65,27.66479]
[1641057390476,2.84887927,173.7,173.65,27.66479]
[1641057390877,42.59502626,173.71,173.66,1.23883553]
[1641057391284,12.26322626,173.71,173.66,4.23883553]
[1641057391682,2.84889053,173.7,173.66,3.0]
[1641057392182,29.7042,173.74,173.67,1.23886041]
[1641057392384,12.26241072,173.72,173.67,1.23886041]
[1641057392884,13.16988286,173.73,173.66,3.0]
[1641057393086,13.16988286,173.73,173.7,27.66479]
[1641057393486,12.26220076,173.72,173.7,27.66479]
[1641057393785,12.26220076,173.72,173.7,21.12494959]
[1641057394084,12.26220076,173.72,173.64,12.19066227]
[1641057394587,12.26220076,173.72,173.64,15.19066227]
[1641057395186,15.11081059,173.73,173.7,27.66479]
[1641057395387,15.11081059,173.73,173.7,32.43479]
[1641057398389,2.84860983,173.73,173.7,32.43479]
[1641057399991,2.84860983,173.73,173.7,4.77]
[1641057400793,2.84860983,173.73,173.67,27.66479]
[1641057401695,2.84860983,173.73,173.68,1.23787798]
[1641057401894,2.84860983,173.73,173.68,8.03487798]
[1641057402397,2.84860983,173.73,173.68,6.797]
[1641057404098,2.84860983,173.73,173.69,1.2378908]
[1641057404800,2.84860983,173.73,173.68,6.797]
[1641057406102,15.11081059,173.73,173.68,6.797]
[1641057406804,12.26220076,173.72,173.67,27.66479]
[1641057407407,12.26220076,173.72,173.68,1.23926496]
[1641057414516,12.26220076,173.72,173.68,27.66479]
[1641057414716,12.26220076,173.72,173.68,34.35679]
[1641057420925,13.16896615,173.73,173.68,34.35679]
[1641057420926,2.84860983,173.73,173.69,1.23916755]
[1641057423428,15.11081059,173.73,173.69,1.23916755]
[1641057423828,2.84860983,173.73,173.69,1.23916755]
[1641057426828,2.84860983,173.73,173.71,27.66479]
[1641057427028,12.26220076,173.75,173.71,27.66479]
[1641057427628,15.11081059,173.76,173.72,1.23916755]
[1641057428227,15.11081059,173.76,173.71,27.66479]
[1641057428430,12.26220076,173.74,173.71,27.66479]
[1641057432633,12.26220076,173.75,173.71,27.66479]
[1641057433035,12.26220076,173.75,173.74,27.66479]
[1641057433237,2.84860983,173.76,173.74,27.66479]
[1641057434237,15.11081059,173.76,173.74,27.66479]
[1641057434637,3.0,173.75,173.68,12.19066227]
[1641057434838,3.0,173.73,173.68,12.19066227]
[1641057435039,3.0,173.73,173.66,12.19066227]
[1641057435240,30.66479,173.74,173.66,12.19066227]
[1641057435739,12.26306966,173.71,173.64,1.23924719]
[1641057436343,12.26306966,173.72,173.64,1.23924719]
[1641057437242,15.11167949,173.73,173.64,49.65125152]
[1641057438242,15.11167949,173.73,173.65,1.23924719]
[1641057438842,2.84860983,173.73,173.65,1.23924719]
[1641057441446,2.84860983,173.73,173.65,19.45276484]
[1641057442644,15.11167949,173.73,173.66,12.19066227]
[1641057443346,15.11167949,173.73,173.67,27.66479]
[1641057444346,12.26306966,173.73,173.68,1.23924719]
[1641057445046,12.26306966,173.73,173.69,4.08727716]
[1641057448950,15.11167949,173.74,173.68,5.32652435]
[1641057450552,15.11167949,173.74,173.68,4.08727716]
[1641057450854,15.11167949,173.74,173.69,27.66479]
[1641057451153,15.11167949,173.74,173.69,31.75206716]
[1641057451154,2.84860983,173.74,173.69,31.75206716]
[1641057451354,5.84860983,173.74,173.69,4.08727716]
[1641057451755,18.11167949,173.74,173.68,4.08727716]
[1641057452158,3.0,173.73,173.68,4.08727716]
[1641057452358,2.84860983,173.73,173.68,4.08727716]
[1641057453058,2.84860983,173.73,173.69,4.08727716]
[1641057453559,2.84860983,173.73,173.68,4.08727716]
[1641057454159,15.26306966,173.74,173.66,27.66479]
[1641057454358,3.0,173.74,173.66,27.66479]
[1641057454559,74.16525966,173.75,173.66,27.66479]
[1641057454760,3.0,173.74,173.66,27.66479]
[1641057455158,5.84382417,173.73,173.68,4.08124528]
[1641057455858,3.0,173.72,173.68,4.08124528]
[1641057456060,3.0,173.69,173.65,17.94241656]
[1641057456259,3.0,173.71,173.65,5.75175429]
[1641057456963,2.84427352,173.7,173.67,4.08165378]
[1641057457663,3.0,173.71,173.67,4.08165378]
[1641057457863,3.0,173.71,173.65,5.75175429]
[1641057458162,3.0,173.67,173.63,18.21144546]
[1641057458663,3.0,173.69,173.64,4.08203142]
[1641057458864,3.0,173.68,173.64,4.08203142]
[1641057459065,3.0,173.68,173.63,4.08229685]
[1641057459865,2.84468893,173.67,173.63,4.08229685]
[1641057460468,4.08228521,173.65,173.63,4.08229685]
[1641057464376,4.08228521,173.68,173.62,19.44876369]
[1641057464876,4.08228521,173.68,173.62,13.42797821]
[1641057465076,4.08228521,173.67,173.65,4.08189148]
[1641057465775,4.08228521,173.68,173.66,4.08189148]
[1641057466376,27.66479,173.69,173.67,4.08189148]
[1641057466575,2.84864002,173.68,173.67,4.08189148]
[1641057468080,2.84864002,173.68,173.63,12.19066227]
[1641057468279,42.92936966,173.71,173.64,12.19066227]
[1641057468480,42.92936966,173.71,173.64,18.80466227]
[1641057468679,2.84844064,173.7,173.68,4.08768801]
[1641057469083,27.66479,173.69,173.68,4.08768801]
[1641057469981,15.26306966,173.71,173.68,4.08768801]
[1641057470181,3.0,173.71,173.66,5.32500395]
[1641057470582,12.26306966,173.73,173.66,5.32500395]
[1641057470782,2.84363718,173.7,173.66,5.32500395]
[1641057471481,2.84363718,173.7,173.67,4.08768801]
[1641057472183,18.10670684,173.74,173.68,4.08768801]
[1641057473186,3.0,173.72,173.68,4.08768801]
[1641057473986,3.0,173.72,173.67,5.32500395]
[1641057474187,2.84363718,173.71,173.67,5.32500395]
[1641057475490,2.84363718,173.71,173.67,4.08768801]
[1641057476790,15.10670684,173.74,173.68,4.08768801]
[1641057477393,3.0,173.73,173.68,4.08768801]